Cogmind - Beta 11 X10 @@@ ROGUE MODE // 2022.03.05 @ 22:30:37 Player: maxwell Result: Self-destructed Performance ------------- Evolutions (3) 1500 Regions Visited (8) 1600 Robots Destroyed (167) 835 Value Destroyed (4976) 4976 Prototype IDs (32) 640 Alien Tech Used (0) 0 Bonus (139) 139 TOTAL SCORE: 9690 Bonus ------- High Alert Combat Kills 538 Follower Combat Kills 225 Aligned with FarCom 300 Friendly Fire -924 Cogmind --------- Core Integrity 157/700 Matter 28/300 Energy 210/290 System Corruption 3% Temperature Warning (355) Movement Rolling (160) Ox4 Location -7/Factory Parts ------- > --- POWER (1) -------- Improved Deuterium Engine > --- PROPULSION (4) --- Armored Huge Wheel > --- UTILITY (5) ------ Huge Storage Unit Target Analyzer Hardened Heavy Armor Plating Improved Shield Generator > --- WEAPON (3) ------- Enhanced Autogun Gauss Rifle Heavy Machine Gun > --- INVENTORY (25) --- Huge Storage Unit High-capacity Matter Pod (200) Advanced Launcher Guidance Computer Experimental Core Analyzer Advanced Weapon Cycler Transmission Jammer Graphene Brace Graphene Brace Improved Shield Generator Advanced Component Analysis Suite Long-range Tractor Beam Trap Extractor (0/4) Latent Energy Streamer XL Autogun Array Heavy Assault Cannon Improved Grenade Launcher Improved Grenade Launcher Improved Grenade Launcher Peak State ------------ > --- POWER ------------ Light Neutrino Core > --- PROPULSION ------- Armored Huge Wheel Armored Huge Wheel > --- UTILITY ---------- Huge Storage Unit Advanced Targeting Computer Experimental Targeting Computer Hardened Medium Armor Plating Graphene Brace > --- WEAPON ----------- AWS/Autocannon > --- INVENTORY -------- Armored Huge Wheel Huge Storage Unit High-capacity Matter Pod Advanced Launcher Guidance Computer Experimental Core Analyzer Advanced Weapon Cycler Advanced Component Analysis Suite Long-range Tractor Beam Trap Extractor Latent Energy Streamer Heavy Assault Rifle Enhanced Autogun Enhanced Autogun XL Autogun Array Heavy Assault Cannon Improved Grenade Launcher Improved Grenade Launcher Improved Grenade Launcher [Rating: 85] Favorites ----------- Power Ion Engine Engine Ion Engine Power Core Light Neutrino Core Propulsion Light Treads Treads Light Treads Wheel Armored Huge Wheel Utility Huge Storage Unit Device Shield Generator Storage Huge Storage Unit Processor Advanced Targeting Computer Hackware Hacking Suite Protection Hardened Medium Armor Plating Weapon Heavy Assault Rifle Energy Gun Improved EM Shotgun Energy Cannon Latent Energy Streamer Ballistic Gun Heavy Assault Rifle Ballistic Cannon AWS/Autocannon Launcher Mini Grenade Launcher Build | -11 -10 -10 -9 -9 -9 -8 -8 -7 ------- Run | Scr Mat Min Mat Min Exi Min Mat Fac Slots Evolved 6 | . . . 2 . . . 2 2 Power . | . . . . . . . . . Propulsion 2 | . . . . . . . 2 . Utility 3 | . . . 1 . . . . 2 Weapon 1 | . . . 1 . . . . . Parts Attached 129 | 4 19 9 22 5 35 . 10 25 Power 8 | 1 . . 1 1 3 . . 2 Engine 6 | 1 . . 1 1 1 . . 2 Core 2 | . . . . . 2 . . . Reactor . | . . . . . . . . . Propulsion 24 | . 4 4 1 . 7 . 3 5 Treads 19 | . 4 4 1 . 7 . 3 . Leg . | . . . . . . . . . Wheel 5 | . . . . . . . . 5 Hover . | . . . . . . . . . Flight . | . . . . . . . . . Utility 34 | 1 6 1 4 . 9 . 3 10 Device 14 | . 2 . 1 . 6 . 1 4 Storage 3 | 1 2 . . . . . . . Processor 6 | . . . 1 . . . 1 4 Hackware 2 | . 1 . . . . . . 1 Protection 9 | . 1 1 2 . 3 . 1 1 Artifact . | . . . . . . . . . Weapon 63 | 2 9 4 16 4 16 . 4 8 Energy Gun 16 | 2 6 2 5 . . . 1 . Energy Cannon 2 | . . . . . 2 . . . Ballistic Gun 27 | . . 1 6 2 10 . 1 7 Ballistic Cannon 3 | . . . . . 1 . 2 . Launcher 15 | . 3 1 5 2 3 . . 1 Special Weapon . | . . . . . . . . . Impact Weapon . | . . . . . . . . . Slashing Weapon . | . . . . . . . . . Piercing Weapon . | . . . . . . . . . Special Melee Weapon . | . . . . . . . . . Unidentified Prototypes 4 | . 1 . 1 . 1 . 1 . Corrupted Parts 4 | . . 3 . . 1 . . . System Corruption 9 | . . 8 . . 1 . . . Parts Lost 31 | . 2 1 3 . 18 . . 7 Power 5 | . . . 1 . 2 . . 2 Propulsion 8 | . . 1 . . 5 . . 2 Utility 6 | . . . 1 . 4 . . 1 Weapon 12 | . 2 . 1 . 7 . . 2 Highest Loss Streak 11 | . 1 1 1 . 11 . . 1 To Critical Strikes 4 | . . . . . 4 . . . Average Slot Usage (%) 90 | . 92 99 98 100 84 88 80 74 Engine 8 | . 14 14 10 11 4 . . 4 Core 2 | . . . . . 6 11 9 2 Treads 22 | . 24 27 22 22 21 22 35 4 Wheel 1 | . . . . . . . . 12 Device 5 | . 8 . 5 11 5 . . 6 Storage 11 | . 14 14 11 11 11 11 9 7 Processor 2 | . . . 5 . . . 1 12 Protection 10 | . . 14 10 11 11 22 16 4 Energy Gun 7 | . 21 20 15 . . . . . Ballistic Gun 13 | . . . 15 30 17 11 . 12 Ballistic Cannon 1 | . . . . . . . 8 2 Launcher 2 | . 3 7 2 2 . 11 . 1 Naked Turns . | . . . . . . . . . Heaviest Build 169 | 14 90 94 104 108 169 108 164 157 Greatest Support 80 | 3 40 40 40 40 40 40 80 80 Greatest Overweight (x) 5 | 4 4 2 2 2 4 2 2 5 Average Overweight (x) 1 | 2 . 2 2 2 2 2 1 1 Largest Inventory Capacity 25 | 8 25 25 25 25 25 25 25 25 Average Capacity 23 | 7 17 25 25 25 25 25 25 25 Most Carried 25 | 6 18 25 25 25 25 25 25 25 Average Carried 22 | 3 12 23 24 24 22 25 23 24 Final Capacity 25 | 8 25 25 25 25 25 25 25 25 Final Carried 25 | 6 18 24 25 25 25 25 25 22 Class Distribution -------------------- 34% | Mutant 33% | Scavenger-Tank 14% | Tank 7% | Scavenger-Mutant 5% | Gunner 4% | Scavenger-Gunner Dominant Class ---------------- Mutant | -10/Materials Mutant | -10/Mines Tank | -9/Materials Scavenger-Tank | -9/Mines Scavenger-Tank | -9/Exiles Mutant | -8/Mines Scavenger-Tank | -8/Materials Scavenger-Tank | -7/Factory Resources | -11 -10 -10 -9 -9 -9 -8 -8 -7 ----------- Run | Scr Mat Min Mat Min Exi Min Mat Fac Matter Collected 4183 | 99 343 141 778 180 1188 46 455 953 Remotely . | . . . . . . . . . Salvage Created 5110 | . 395 120 1201 308 580 3 496 2007 Parts 388 | . 35 10 95 38 64 5 30 111 Haulers Intercepted 9 | . 2 . 4 . . . . 3 Recyclers Shooed 2 | . . . 2 . . . . . Parts Field Recycled . | . . . . . . . . . Retrieved Matter . | . . . . . . . . . Parts Self-Destructed . | . . . . . . . . . Prevented . | . . . . . . . . . Kills | -11 -10 -10 -9 -9 -9 -8 -8 -7 ------- Run | Scr Mat Min Mat Min Exi Min Mat Fac Combat Hostiles Destroyed 115 | . 10 2 26 13 4 3 18 39 Guns 44 | . 1 2 15 8 1 . . 17 Cannons 34 | . . . . . . . 18 16 AOE 36 | . 8 . 11 5 3 3 . 6 Classes Destroyed 21 | . 8 1 2 2 3 . 3 2 Worker 7 | . 2 . 2 . . . . 3 Builder 6 | . . . 1 3 . . . 2 Tunneler 4 | . 1 . 2 1 . . . . Hauler 9 | . 2 . 4 . . . . 3 Recycler 3 | . 1 . . . . . . 2 Operator 4 | . 1 . 1 . . . . 2 Turret 1 | . . . . . 1 . . . Watcher 11 | . 3 . 4 . . . 2 2 Swarmer 28 | . 6 . 7 6 . 3 3 3 Grunt 42 | . 4 . 9 5 . . 7 17 Brawler 2 | . . . . . . . 1 1 Duelist 3 | . . . 2 . . . . 1 Protector 1 | . . . . 1 . . . . Sentry 17 | . . 2 8 . . . 4 3 Demolisher 2 | . . . . 1 . . . 1 Specialist 6 | . . . . . . . 2 4 Hunter 3 | . . . . . . . . 3 Programmer 3 | . . . . . . . . 3 Heavy 4 | . . . . . . . 1 3 Zionite 8 | . . . . . 8 . . . Assembled 7 | . . . . . 7 . . . Best Kill Streak 8 | . 7 2 8 7 3 3 5 7 Combat Bots Only 6 | . 4 2 4 5 3 3 5 6 Max Kills in Single Turn 4 | . 4 1 3 4 4 2 1 2 Gunslinging . | . . . . . . . . . Exploded 4 | . 2 . 3 4 3 2 . 2 Melee . | . . . . . . . . . Uniques/NPCs Destroyed 4 | . . . . . 4 . . . 8R-AWN (-9/Exiles) EX-DEC (-9/Exiles) EX-HEX (-9/Exiles) EX-BIN (-9/Exiles) Combat | -11 -10 -10 -9 -9 -9 -8 -8 -7 -------- Run | Scr Mat Min Mat Min Exi Min Mat Fac Damage Taken 7173 | . 442 149 515 225 2056 66 293 3427 Core 930 | . 161 14 60 4 148 . . 543 Absorbed by Shields 719 | . . . 115 90 278 . . 236 Regen/Repaired (Parts) 253 | . . . 36 . . . 5 212 Core Remaining (%) 69 | 100 . 30 . . . 47 100 . Volleys Fired 302 | . 23 5 53 13 121 3 . 84 Largest 3 | . 2 2 3 3 3 1 . 3 Hottest 125 | . 80 90 125 69 69 30 . 83 Shots Fired 776 | . 37 11 119 35 223 5 46 300 Gun 625 | . 28 11 106 33 207 . . 240 Cannon 114 | . . . . . 12 . 46 56 Launcher 37 | . 9 . 13 2 4 5 . 4 Special . | . . . . . . . . . Kinetic 649 | . . 1 61 33 212 . 46 296 Thermal 1 | . 1 . . . . . . . Explosive 37 | . 9 . 13 2 4 5 . 4 Electromagnetic 89 | . 27 10 45 . 7 . . . Robot Hit Streak 40 | . 9 15 16 6 17 3 16 40 Robot Miss Streak 5 | . 2 1 5 3 4 1 2 3 Penetration Max 1 | . . . . . . . . 1 Secondary Targets 4 | . . 1 . . . . . 3 Max Gunslinging Chain 1 | . . 1 . . . . . 1 Autonomous 108 | . . . . . 5 . 46 57 Shots Hit Robots 562 | . 21 9 79 21 162 3 40 227 Core Hits 277 | . 19 6 65 18 52 3 19 95 Critical Kills 3 | . . . . . . . . 3 Critical Parts Destroyed 2 | . . . . . . . . 2 Critical Strikes 12 | . 1 . . . 2 . 2 7 Destroy 6 | . . . . . 1 . . 5 Blast 5 | . . . . . 1 . 2 2 Corrupt 1 | . 1 . . . . . . . Melee Attacks . | . . . . . . . . . Impact . | . . . . . . . . . Slashing . | . . . . . . . . . Piercing . | . . . . . . . . . Sneak Attacks . | . . . . . . . . . Combat Hostiles . | . . . . . . . . . Follow-up Attacks . | . . . . . . . . . Damage Inflicted 20492 | . 1293 171 2609 682 3652 263 3604 8218 Guns 7548 | . 270 158 1253 316 2196 . . 3355 Cannons 7661 | . . . . . 277 . 3604 3780 Explosions 5136 | . 1023 . 1272 337 1179 263 . 1062 Melee . | . . . . . . . . . Ramming 147 | . . 13 84 29 . . . 21 Kinetic 14215 | . . . 698 316 2462 . 3604 7135 Thermal 259 | . . . 148 . . . . 111 Explosive 3878 | . 1023 . 1077 337 483 263 . 695 Electromagnetic 1993 | . 270 158 602 . 707 . . 256 Impact . | . . . . . . . . . Slashing . | . . . . . . . . . Piercing . | . . . . . . . . . Highest Corruption 21 | . . 8 . . 21 21 . 3 Average Corruption 10 | . . 3 . . 9 21 . 2 Corruption Purged . | . . . . . . . . . Corruption Blocked . | . . . . . . . . . Effects 93 | . . 1 . . 66 21 . 5 Message Errors 16 | . . . . . 13 3 . . Matter Fused 33 | . . . . . 22 9 . 2 Heat Flow Errors 6 | . . . . . 5 1 . . Energy Discharges 14 | . . . . . 10 4 . . Data Loss (minor) 6 | . . . . . 4 . . 2 Data Loss (major) 7 | . . 1 . . 4 1 . 1 Misfires 3 | . . . . . 1 2 . . Alerts 4 | . . . . . 3 1 . . Weapon Failures 4 | . . . . . 4 . . . Overload Shots . | . . . . . . . . . Overflow Damage 1277 | . 86 . 28 . 51 1 378 733 Projectiles 989 | . . . . . 26 . 378 585 Explosions 288 | . 86 . 28 . 25 1 . 148 Melee . | . . . . . . . . . Knockbacks 25 | . . . . . 1 . 5 19 Impact . | . . . . . . . . . Kinetic 20 | . . . . . 1 . 5 14 Secondary 5 | . . . . . . . . 5 Self-Inflicted Damage 660 | . 240 . 157 . 92 48 . 123 Shots 16 | . 6 . 6 . 1 1 . 2 Rammed 15 | . . 2 8 4 . . . 1 Targets Rammed 19 | . . 2 10 6 . . . 1 Kicked . | . . . . . . . . . Crushed 4 | . . . 2 2 . . . . Highest Temperature 456 | . 90 165 198 67 334 176 18 456 Average Temperature 87 | . 25 75 47 22 117 55 9 102 Received Heat Transfer 827 | . 51 72 109 64 . . 126 405 Effects 10 | . . . . . 5 . . 5 Shutdowns 3 | . . . . . . . . 3 Energy Bleed 2 | . . . . . 2 . . . Interference 3 | . . . . . 3 . . . Short Circuit 2 | . . . . . . . . 2 Siege Activations . | . . . . . . . . . Robots Corrupted 2 | . 1 . . . 1 . . . Combat Hostiles 1 | . 1 . . . . . . . Parts Fried 3 | . . . 1 . 2 . . . Impact Corruptions 1 | . . . . . . . . 1 Robots Melted . | . . . . . . . . . Combat Hostiles . | . . . . . . . . . Parts Melted . | . . . . . . . . . Heat Transferred 250 | . . . 200 . . . . 50 Parts Sabotaged . | . . . . . . . . . Parts Stolen . | . . . . . . . . . Parts Stripped . | . . . . . . . . . Power Chain Reactions 3 | . . . 2 . . . . 1 Missiles Intercepted . | . . . . . . . . . Latent Energy Used 1283 | . . . . . 1283 . . . LE Corruption 20 | . . . . . 20 . . . Alert | -11 -10 -10 -9 -9 -9 -8 -8 -7 ------- Run | Scr Mat Min Mat Min Exi Min Mat Fac Peak Influence 1238 | . 216 45 454 135 . 106 383 1238 Initial 135 | . . . . 44 . . . 135 Average 141 | . 31 1 200 29 . 91 74 581 Maximum Alert Level 4 | . 1 . 2 . . . 1 4 Low Security (%) 78 | 100 97 100 59 100 . 100 86 16 Level 1 7 | . 2 . 15 . . . 13 20 Level 2 7 | . . . 25 . . . . 21 Level 3 4 | . . . . . . . . 36 Level 4 . | . . . . . . . . 4 Level 5 . | . . . . . . . . . High Security . | . . . . . . . . . Max Security . | . . . . . . . . . Squads Dispatched 24 | . 3 . 3 1 . . 3 14 Investigation 7 | . 1 . 2 . . . 1 3 Extermination 3 | . . . . . . . . 3 Reinforcement 10 | . 2 . 1 . . . 2 5 Assault 2 | . . . . 1 . . . 1 Garrison 2 | . . . . . . . . 2 Intercept . | . . . . . . . . . Construction Impeded . | . . . . . . . . . Haulers Reinforced 1 | . . . . . . . . 1 Active Scanning Responses . | . . . . . . . . . Cargo Convoy Interrupts 1 | . . . . . . . . 1 Stealth | -11 -10 -10 -9 -9 -9 -8 -8 -7 --------- Run | Scr Mat Min Mat Min Exi Min Mat Fac Distress Signals 10 | . 1 . 6 . . . . 3 Communications Jammed 2 | . . . . . . . . 2 Distress Signals . | . . . . . . . . . Times Spotted 173 | . 22 2 34 19 14 3 15 64 Peak Tracking Total 12 | . 4 2 5 7 5 3 3 12 Tactical Retreats 18 | . . . . 2 9 . . 7 Traps | -11 -10 -10 -9 -9 -9 -8 -8 -7 ------- Run | Scr Mat Min Mat Min Exi Min Mat Fac Traps Triggered 5 | . 4 . . . . . . 1 Indirectly . | . . . . . . . . . Trap Hack Attempts . | . . . . . . . . . Triggered . | . . . . . . . . . Disarmed . | . . . . . . . . . Reprogrammed . | . . . . . . . . . Reused . | . . . . . . . . . Traps Extracted . | . . . . . . . . . Installed . | . . . . . . . . . Triggered . | . . . . . . . . . Machines | -11 -10 -10 -9 -9 -9 -8 -8 -7 ---------- Run | Scr Mat Min Mat Min Exi Min Mat Fac Machines Disabled 36 | . 4 . 5 . 11 . . 16 Max in Single Turn 4 | . 1 . 1 . 4 . . 4 Machines Sabotaged . | . . . . . . . . . Garrisons Compromised . | . . . . . . . . . Overloaded Fab Kills . | . . . . . . . . . Hacking | -11 -10 -10 -9 -9 -9 -8 -8 -7 --------- Run | Scr Mat Min Mat Min Exi Min Mat Fac Machines Accessed 35 | . 6 . 10 . 2 . 9 8 Terminals 20 | . 5 . 7 . . . 6 2 Fabricators 1 | . . . . . . . . 1 Repair Stations 3 | . . . 1 . . . 1 1 Recycling Units 5 | . 1 . 1 . . . . 3 Scanalyzers 3 | . . . 1 . . . 2 . Garrison Access 1 | . . . . . . . . 1 Total Hacks 102 | . 24 . 35 . 2 . 24 17 Successful 60 | . 14 . 25 . 2 . 12 7 Failed 41 | . 9 . 10 . . . 12 10 Catastrophic 4 | . . . . . . . 3 1 Database Lockouts 1 | . 1 . . . . . . . Manual 61 | . 18 . 22 . 1 . 15 5 Terminals 66 | . 21 . 28 . . . 14 3 Fabricators 2 | . . . . . . . . 2 Repair Stations 8 | . . . 2 . . . 3 3 Recycling Units 12 | . 3 . 3 . . . . 6 Scanalyzers 9 | . . . 2 . . . 7 . Garrison Access 3 | . . . . . . . . 3 Terminal Hacks 25 | . 9 . 12 . 2 . 2 . Record 1 | . . . . . 1 . . . Part Schematic 1 | . 1 . . . . . . . Robot Analysis 5 | . 3 . 1 . . . 1 . Prototype ID Bank 2 | . 1 . 1 . . . . . Branch Access Points 2 | . 1 . 1 . . . . . Terminal Index 3 | . 1 . 1 . . . 1 . Unreport Threat 2 | . . . 2 . . . . . Locate Traps 4 | . 1 . 3 . . . . . Hauler Manifests 1 | . . . 1 . . . . . Registered Prototypes 1 | . . . 1 . . . . . Zone Layout 2 | . 1 . 1 . . . . . EX-Prototype ID Bank 1 | . . . . . 1 . . . Fabricator Hacks 1 | . . . . . . . . 1 Build 1 | . . . . . . . . 1 Repair Station Hacks 6 | . . . 2 . . . 2 2 Scan Component 3 | . . . 1 . . . 1 1 Repair 3 | . . . 1 . . . 1 1 Recycling Unit Hacks 3 | . . . 1 . . . . 2 Retrieve Components 3 | . . . 1 . . . . 2 Scanalyzer 7 | . . . 2 . . . 5 . Insert Component 3 | . . . 1 . . . 2 . Analyze 4 | . . . 1 . . . 3 . Garrison Access Hacks . | . . . . . . . . . Unauthorized Hacks 18 | . 5 . 8 . . . 3 2 Terminals 15 | . 5 . 7 . . . 3 . Track 1 | . . . 1 . . . . . Assimilate 3 | . 3 . . . . . . . Botnet 8 | . 1 . 5 . . . 2 . Operators 3 | . 1 . 1 . . . 1 . Fabricators . | . . . . . . . . . Repair Stations . | . . . . . . . . . Recycling Units 3 | . . . 1 . . . . 2 Tunnel 3 | . . . 1 . . . . 2 Scanalyzers . | . . . . . . . . . Garrison Access . | . . . . . . . . . Data Cores Recovered 1 | . . . . . . . . 1 Used 1 | . . . . . . . . 1 Hacking Detections 27 | . 4 . 9 . . . 8 6 Full Trace Events 4 | . 1 . . . . . 2 1 Feedback Events . | . . . . . . . . . Feedback Blocked . | . . . . . . . . . Robot Schematics Acquired . | . . . . . . . . . Robots Built 2 | . . . . . . . . 2 Authchips . | . . . . . . . . . Time 67 | . . . . . . . . 67 Total Robot Build Rating 8 | . . . . . . . . 8 Part Schematics Acquired 3 | . 1 . 1 . . . 1 . Parts Built . | . . . . . . . . . Authchips . | . . . . . . . . . Time . | . . . . . . . . . Total Part Build Rating . | . . . . . . . . . Parts Repaired 3 | . . . 1 . . . 1 1 Time 154 | . . . 32 . . . 100 22 Parts Recycled . | . . . . . . . . . Recycled Matter . | . . . . . . . . . Retrieved Matter . | . . . . . . . . . Retrieved Components 14 | . . . 10 . . . . 4 Parts Scanalyzed 3 | . . . 1 . . . 2 . Part Schematics Acquired 2 | . . . 1 . . . 1 . Parts Damaged 2 | . . . 1 . . . 1 . Bothacking | -11 -10 -10 -9 -9 -9 -8 -8 -7 ------------ Run | Scr Mat Min Mat Min Exi Min Mat Fac Used RIF Installer . | . . . . . . . . . Robots Hacked . | . . . . . . . . . Non-combat . | . . . . . . . . . Combat . | . . . . . . . . . Robot Hacks Applied . | . . . . . . . . . Relay Couplers Released . | . . . . . . . . . Fabnet Peak Effective % . | . . . . . . . . . Robots Rewired . | . . . . . . . . . Allies Hacked . | . . . . . . . . . Hacks Repelled . | . . . . . . . . . Allies | -11 -10 -10 -9 -9 -9 -8 -8 -7 -------- Run | Scr Mat Min Mat Min Exi Min Mat Fac Total Allies 9 | . 2 1 . 4 . . . 2 Largest Group 4 | . 2 3 2 4 3 . . 2 Highest-Rated Group 64 | . 20 51 20 50 40 . . 64 Highest-Rated Ally 32 | . 10 31 10 31 16 . . 32 Total Orders 29 | . 4 2 6 9 8 . . . STAY 21 | . 2 1 1 9 8 . . . FOLLOW 8 | . 2 1 5 . . . . . Ally Attacks 32 | . . . . 17 2 . . 13 Total Damage 825 | . . . . 304 24 . . 497 Kills 6 | . . . . 2 . . . 4 Allies Corrupted . | . . . . . . . . . Allies Melted . | . . . . . . . . . Turrets Deployed 1 | . . . . . . . . 1 Intel | -11 -10 -10 -9 -9 -9 -8 -8 -7 ------- Run | Scr Mat Min Mat Min Exi Min Mat Fac Robot Analysis Total 5 | . 3 . 1 . . . 1 . Derelict Logs Recovered 4 | . . 2 . 2 . . . . Drone Launches . | . . . . . . . . . Drone Recoveries . | . . . . . . . . . Exploration | -11 -10 -10 -9 -9 -9 -8 -8 -7 ------------- Run | Scr Mat Min Mat Min Exi Min Mat Fac Turns Passed 18813 | 78 2369 1860 2854 3606 3865 417 1719 2045 Spaces Moved 6190 | 36 898 567 793 1088 1031 129 544 1104 Core 134 | 36 98 . . . . . . . Treads 5066 | . 800 567 793 1088 1031 129 544 114 Legs . | . . . . . . . . . Wheels 990 | . . . . . . . . 990 Hover . | . . . . . . . . . Flight . | . . . . . . . . . Fastest Speed 50 | 50 160 320 320 320 320 320 240 115 Average Speed 272 | 190 209 320 320 320 337 320 303 137 Slowest Speed 480 | 250 320 320 320 320 480 320 322 245 Overloaded Moves . | . . . . . . . . . Propulsion Burnouts . | . . . . . . . . . Robots Hopped . | . . . . . . . . . Cave-ins Triggered . | . . . . . . . . . Exploration Rate (%) 64 | 3 94 96 74 99 89 49 43 34 Regions Visited 8 Branch Regions 4 Pre-discovered Areas 5 | . . . 1 1 1 . . 2 Known Exits Taken 4 | . 1 1 1 . . 1 . . Unknown Exits Taken 4 | 1 . . . 1 1 . 1 . Scrap Searched 5 | . . 2 . 2 . 1 . . Spaces Dug 31 | . . . 31 . . . . . Terrain Destroyed 403 | . 54 . 92 20 110 50 5 72 Melee . | . . . . . . . . . Projectile 15 | . . . . . . . 5 10 AOE 388 | . 54 . 92 20 110 50 . 62 Terrain Rammed . | . . . . . . . . . Walls Destroyed . | . . . . . . . . . Machines Disabled . | . . . . . . . . . Actions | -11 -10 -10 -9 -9 -9 -8 -8 -7 --------- Run | Scr Mat Min Mat Min Exi Min Mat Fac Total 7647 | 45 1344 601 1001 1175 1230 132 617 1502 Wait 824 | . 382 . 75 61 19 1 35 251 Move 6182 | 35 897 566 792 1087 1030 128 543 1104 Hop . | . . . . . . . . . Pick Up 100 | 6 18 13 25 1 13 . 12 12 Fast Attach 40 | 4 7 2 5 1 5 . 7 9 Attach 43 | . 4 3 5 . 17 . 3 11 Detach 13 | . 1 . 1 . 4 . 1 6 Swap 46 | . 8 4 12 4 13 . . 5 Drop 70 | . 4 6 23 2 8 . 16 11 Fire 302 | . 23 5 53 13 121 3 . 84 Melee . | . . . . . . . . . Ram 1 | . . . . . . . . 1 Kick . | . . . . . . . . . Crush 18 | . . 2 10 6 . . . . Escape Stasis 8 | . . . . . . . . 8 Rewire . | . . . . . . . . . Trap . | . . . . . . . . . Miscellaneous . | . . . . . . . . . Route ------- -11/Scrapyard -10/Materials (discovered 4 exits: *Mat x3 / *Min) -10/Mines (discovered 2 exits: *Mat x2) -9/Materials (discovered 4 exits: *Mat x2 / *Min x2) -9/Mines (discovered 3 exits: *Mat x2 / *Exi) -9/Exiles -8/Mines -8/Materials (discovered 2 exits: *Fac x2) -7/Factory (discovered 3 exits: *Fac x2 / Sto) History --------- Turn | Location | Event 39 | -11/Scrapyard | Discovered new exit (range 15) 79 | -11/Scrapyard | Entered Materials 302 | -10/Materials | Build established: Mutant 559 | -10/Materials | Discovered new exit (range 9) 826 | -10/Materials | Core integrity fell below 50% 877 | -10/Materials | Discovered new exit (range 7) 976 | -10/Materials | Discovered new exit (range 14) 1195 | -10/Materials | Discovered new exit (range 16) 1685 | -10/Materials | Central database locked down 1997 | -10/Materials | Identified exit to Mines 2448 | -10/Materials | Entered Mines 2448 | -10/Mines | Accompanied by 2 allies 2451 | -10/Mines | Received a Mining Laser from a helpful Derelict 2561 | -10/Mines | Discovered new exit (range 9) 2632 | -10/Mines | Identified exit to Materials 3168 | -10/Mines | Received a Rocket Launcher from a helpful Derelict 3406 | -10/Mines | Learned 4 Materials zone layouts 4308 | -10/Mines | Entered Materials 4308 | -9/Materials | Accompanied by 2 allies 4308 | -9/Materials | Evolved 2 slots: Utility x1, Weapon x1 4309 | -9/Materials | Identified exit to Materials 4382 | -9/Materials | Repaired Hvy. Assault Rifle 4507 | -9/Materials | Identified exit to Mines 4670 | -9/Materials | Build established: Gunner 6313 | -9/Materials | Build established: Tank 6636 | -9/Materials | Discovered exit to Materials (range 11) 7162 | -9/Materials | Entered Mines 7162 | -9/Mines | Accompanied by 1 ally 7519 | -9/Mines | Deemed a non-threat by the Exiles lab entrance 7522 | -9/Mines | Discovered new exit (range 5) 7903 | -9/Mines | Met a Derelict testing a Signal Generator 8299 | -9/Mines | A weapon hastily lodged in a ceiling crevice suddenly fell to the ground 8313 | -9/Mines | Build established: Scavenger-Tank 8586 | -9/Mines | Discovered exit to Materials (range 8) 8938 | -9/Mines | Assembled infested the area 8943 | -9/Mines | Assisted by a Guerilla fighting off Assembled 9675 | -9/Mines | Assisted by bots powering up and referring to "LRC-V3" 10272 | -9/Mines | Discovered exit to Materials (range 15) 10768 | -9/Mines | Entered Exiles 10768 | -9/Exiles | Accompanied by 3 allies 10848 | -9/Exiles | Met 8R-AWN 10900 | -9/Exiles | Met EX-HEX 11021 | -9/Exiles | Met EX-DEC 11165 | -9/Exiles | Learned location of Zion (-6) 11677 | -9/Exiles | Met EX-BIN 11722 | -9/Exiles | Aligned with FarCom system 11725 | -9/Exiles | Given EX-Vault access code 11799 | -9/Exiles | Opened EX-Vault 11872 | -9/Exiles | Warned to stay clear of 0b10 Research branches 12016 | -9/Exiles | Attacked by the Exiles 12094 | -9/Exiles | Lost 3 parts (2n1u) 12166 | -9/Exiles | Core integrity fell below 50% 12174 | -9/Exiles | Destroyed 8R-AWN 12195 | -9/Exiles | Found Prototype Processor 12363 | -9/Exiles | Lost 11 parts (1p3n3u4w) 12540 | -9/Exiles | Found Latent Energy Streamer 12573 | -9/Exiles | Found AWS/Autocannon 12879 | -9/Exiles | Build established: Tank 13092 | -9/Exiles | Found XL Autogun Array 13198 | -9/Exiles | Build established: Mutant 13424 | -9/Exiles | Destroyed EX-DEC 13459 | -9/Exiles | System corruption reached 10% 13692 | -9/Exiles | Destroyed EX-HEX 13705 | -9/Exiles | Build established: Scavenger-Mutant 13725 | -9/Exiles | Destroyed EX-BIN 13858 | -9/Exiles | Identified Exp. Targeting Computer 13867 | -9/Exiles | Found Prototype Processor 13869 | -9/Exiles | Identified Exp. Core Analyzer 13882 | -9/Exiles | Found Deploy-a-Sentry 14466 | -9/Exiles | Discovered new exit (range 10) 14633 | -9/Exiles | Stole four prototypes: Latent Energy Streamer, XL Autogun Array, AWS/Autocannon, Deploy-a-Sentry 14633 | -9/Exiles | Entered Mines 14829 | -8/Mines | Build established: Mutant 15002 | -8/Mines | Discovered exit to Materials (range 16) 15050 | -8/Mines | Entered Materials 15050 | -8/Materials | Evolved 2 slots: Propulsion x2 15376 | -8/Materials | Build established: Scavenger-Tank 16073 | -8/Materials | Repaired Broken Exp. Targeting Computer 16175 | -8/Materials | Discovered new exit (range 9) 16658 | -8/Materials | Discovered new exit (range 4) 16769 | -8/Materials | Entered Factory 16769 | -7/Factory | Evolved 2 slots: Utility x2 16770 | -7/Factory | Identified exit to Storage 17348 | -7/Factory | Build established: Tank 17470 | -7/Factory | Cargo convoy interrupted 17474 | -7/Factory | Garrison activated, responded to threat 17475 | -7/Factory | DAS Turret deployed 17600 | -7/Factory | Discovered new exit (range 20) 17850 | -7/Factory | Build established: Scavenger-Gunner 17890 | -7/Factory | Repaired Arm. Huge Wheel 17945 | -7/Factory | Garrison activated, responded to threat 18135 | -7/Factory | Fabricated Y-54 Guardian (x2) 18196 | -7/Factory | Core integrity fell below 50% 18262 | -7/Factory | Build established: Mutant 18369 | -7/Factory | First assault squad dispatched 18598 | -7/Factory | Build established: Scavenger-Tank 18637 | -7/Factory | Discovered new exit (range 13) 18684 | -7/Factory | Identified exit to Factory 18814 | -7/Factory | Self-destructed Last Messages --------------- 18776_ System corrupted: Component data lost. 18787_ Slug penetrates Wall. 18789_ Slug penetrates P-60 Hacker. 18789_ Destroyed Mic. Nuclear Core. 18792_ Slug penetrates P-60 Hacker. 18792_ Destroyed Gravmag System. 18793_ System corrupted: Matter fused (-7). 18798_ M-28 Smith fits Unknown Engine on P-60 Hacker. 18798_ Slug penetrates Wall. 18800_ M-28 Smith fits Backup Propulsion III on P-60 Hacker. 18800_ Destroyed Unknown Energy Gun. 18800_ Slug penetrates Wall. 18803_ Slug penetrates P-60 Hacker. 18806_ Destroyed Unknown Energy Gun. 18806_ Destroyed Remote Datajack. 18808_ M-28 Smith fits Backup Laser III on P-60 Hacker. 18809_ Slug penetrates Y-54 Guardian. 18810_ Power failure, Imp. Deuterium Engine shutdown. 18812_ M-28 Smith fits Backup Laser III on P-60 Hacker. 18812_ Arm. Huge Wheel destroyed. Map ----- +----------------------------------------------------+ | ???# """ """ #???##+#######????? | | ???# """ """ ##### ^ ###### | | ???# | | ???# """ """ ## T###########??# | | ???# """ """ #??##??????########### | | ???# """ """ #????###??## # !! | | ???# #????# ### # """ """ # ! | | ???# """ """ ####### # # """ """ # | | ???# """ """ + """ """ / | | ???# """ """ ### ## # # ##### | | ???# #?# # ## # #???? | | ???# """ """ #?# ####### #######???? | | ???# """ """ #?# #?????# ! #?????????? | | #### %"" """ #?# #?????###########?????????? | | != #?# ###############???????????? | | *[ #?# ## #???????????? | | #############+#####?# ## #???????????? | | #?????????? ????# ## #???????????? | | #?????????# #??# ## ! #???????????? | | #?????????# """ #??# ## #???????????? | | #?????????#! """ #??# ## #???????????? | | #?????????# """ #??# ## #???????????? | | ###???????#! #??# ## #???????????? | | * ???????########??# ##! #???????????? | | ?????????????????# ## #???????????? | | =???????########## ##@ Y #???????????? | | =???????# # ## pm #???????????? | | ?????# # ########+################## | | #######????# # #????# # | | ???????????# # ###### # """"""" | | ???????????# # # | | ????????##?# + | | ???????? ## # | | ?????""?" ## [ | | ??# """" ## % | | ??# """" ######### ####### | | ??# """" + #?????? | | #?# #### ????? | | ### """" #??#[ ???? | | + """"=#### * % ??? | | ### """"%"! ! ? | | #?# """"=#### ? | | ### ########## | | %#######+## #??# % | | % !!! ### # ? | | % % = < ! # ##### """?? | | %% % != ### # #???? ? "???? | | ###"###"## #??#### #?????##????####### ?????? | | ##?# ? ####+###?????? #????????????????????????? | | ???#? #????????????? ????????????????????????? | +----------------------------------------------------+ Best States ------------- Heat Dissipation 34 Coolant Potential 50 Energy Generation 19 Energy Capacity 310 Matter Stores 300 Matter Capacity 300 Sight Range 20 Terrain Scan Density 10 Jamming Range 12 Armor Coverage 600 Power Shielding 33 Evasion (%) 40 Targeting Accuracy 20 Target Analysis 5 Recoil Reduction 4 Offensive Hacking 10 Item Schematics ----------------- Huge Storage Unit | -10/Materials | Hacked Autogun | -9/Materials | Scanalyzed Exp. Targeting Computer | -8/Materials | Scanalyzed Robot Schematics ------------------ None Fabricated ------------ Y-54 Guardian | x2 | -7/Factory | Preloaded Alien Tech Used ----------------- None Achievements -------------- None Challenges ------------ None Game ------ Seed CloakUltimateBarrier Manual? 0 Play Time 00:57:33 Cumulative 194.4 hours Start 2022.03.05 @ 20:01:54 End 2022.03.05 @ 22:30:37 Sessions 2 Manual Loads 0 Difficulty Rogue Special Mode None Game No. 299 Rogue 277 Adventurer 4 Explorer 18 Win Type - Total 10 Types 8/0/0/2/0/0/0/0/0 Lore% 68 Gallery% 85 Achievement% 70 Wizard Run 0 Options --------- ASCII 0 Keyboard 1 Movement Numpad Keybinds 0 Fullscreen 1 Font 18/SmallcapsGlow Map View 76x50 Tactical HUD 1 Map Filters NONE Filters NONE Steam 1 RUN: 92a9f905-cd5e-49d3-a1b6-985d93796f83